Cogmind - Beta 13 @@@ ROGUE MODE // 2024.06.20 @ 02:09:38 Player: fishy Result: Destroyed by G-34 Mercenary with Small Laser Performance ------------- Evolutions (0) 0 Regions Visited (2) 400 Robots Destroyed (21) 105 Value Destroyed (605) 605 Prototype IDs (0) 0 Alien Tech Used (0) 0 Bonus (0) 0 TOTAL SCORE: 1110 Bonus ------- None Cogmind --------- Core Integrity 0/250 Matter 193/300 Energy 124/125 System Corruption 9% Temperature Cool (16) Movement Walking (120) Location -10/Mines Parts ------- > --- POWER (1) -------- Light Ion Engine > --- PROPULSION (2) --- Aluminum Leg Aluminum Leg > --- UTILITY (2) ------ Improved Terrain Scanner > --- WEAPON (2) ------- Light Assault Rifle > --- INVENTORY (5) ---- Ion Engine Peak State ------------ > --- POWER ------------ Ion Engine > --- PROPULSION ------- Wheel Wheel > --- UTILITY ---------- Heat Sink Compact Matter Pod > --- WEAPON ----------- Particle Gun Rocket Launcher > --- INVENTORY -------- Ion Engine Aluminum Leg Aluminum Leg Aluminum Leg [Rating: 11] Favorites ----------- Power Ion Engine Engine Ion Engine Propulsion Wheel Leg Aluminum Leg Wheel Wheel Utility High-capacity Matter Pod Device Heat Sink Storage High-capacity Matter Pod Weapon EM Pulse Gun Energy Gun EM Pulse Gun Ballistic Gun Light Assault Rifle Launcher Rocket Launcher Build | -11 -10 -10 ------- Run | Yrd Mat Min Slots Evolved . | . . . Power . | . . . Propulsion . | . . . Utility . | . . . Weapon . | . . . Parts Attached 30 | 10 5 15 Power 5 | 1 2 2 Engine 5 | 1 2 2 Core . | . . . Reactor . | . . . Propulsion 12 | 6 . 6 Treads . | . . . Leg 7 | 2 . 5 Wheel 5 | 4 . 1 Hover . | . . . Flight . | . . . Utility 6 | 1 2 3 Device 4 | 1 1 2 Storage 2 | . 1 1 Processor . | . . . Hackware . | . . . Protection . | . . . Artifact . | . . . Weapon 7 | 2 1 4 Energy Gun 5 | 2 1 2 Energy Cannon . | . . . Ballistic Gun 1 | . . 1 Ballistic Cannon . | . . . Launcher 1 | . . 1 Special Weapon . | . . . Impact Weapon . | . . . Slashing Weapon . | . . . Piercing Weapon . | . . . Special Melee Weapon . | . . . Unidentified Prototypes . | . . . Parts Lost 5 | . . 5 Power 1 | . . 1 Propulsion 1 | . . 1 Utility 2 | . . 2 Weapon 1 | . . 1 Highest Loss Streak 3 | . . 3 To Critical Strikes . | . . . Average Slot Usage (%) 89 | . 99 88 Engine 13 | . 14 13 Leg 9 | . . 11 Wheel 17 | . 28 16 Device 4 | . 15 2 Storage 14 | . 11 14 Energy Gun 18 | . 28 17 Ballistic Gun 5 | . . 6 Launcher 3 | . . 4 Naked Turns . | . . . Heaviest Build 15 | 7 15 15 Greatest Support 20 | 20 20 20 Greatest Overweight (x) 1 | . . 1 Average Overweight (x) . | . . . Largest Inventory Capacity 5 | 5 5 5 Average Capacity 5 | 5 5 5 Most Carried 5 | 4 5 5 Average Carried 3 | 2 4 3 Final Capacity 5 | 5 5 5 Final Carried 5 | 3 5 1 Class Distribution -------------------- 91% | Mutant 8% | Scavenger-Mutant Dominant Class ---------------- Mutant | -10/Materials Mutant | -10/Mines Resources | -11 -10 -10 ----------- Run | Yrd Mat Min Matter Collected 847 | 300 94 453 Remotely . | . . . Salvage Created 659 | 37 193 429 Parts 41 | 2 7 32 Haulers Intercepted . | . . . Recyclers Shooed . | . . . Parts Field Recycled . | . . . Retrieved Matter . | . . . Parts Self-Destructed . | . . . Prevented . | . . . Kills | -11 -10 -10 ------- Run | Yrd Mat Min Combat Hostiles Destroyed 20 | 1 4 15 Guns 13 | 1 4 8 AOE 7 | . . 7 Classes Destroyed 5 | 1 . 4 Worker 1 | . . 1 Tunneler 1 | . . 1 Swarmer 3 | . . 3 Grunt 16 | 1 4 11 Assembled 1 | . . 1 Best Kill Streak 5 | 1 2 5 Combat Bots Only 4 | 1 2 4 Max Kills in Single Turn 2 | 1 1 2 Gunslinging . | . . . Exploded 1 | . . 1 Melee . | . . . Uniques/NPCs Destroyed . | . . . Combat | -11 -10 -10 -------- Run | Yrd Mat Min Hostile Shots Fired 81 | 2 19 60 Missed 27 | 1 5 21 Damage Taken 843 | 11 171 661 Core 252 | 11 60 181 Absorbed by Shields . | . . . Core Remaining (%) 95 | 95 . . Volleys Fired 57 | 2 15 40 Largest 2 | 2 2 2 Hottest 105 | 80 105 105 Shots Fired 101 | 4 29 68 Gun 89 | 4 29 56 Cannon . | . . . Launcher 12 | . . 12 Special . | . . . Kinetic 28 | . . 28 Thermal 33 | 2 14 17 Explosive 12 | . . 12 Electromagnetic 28 | 2 15 11 Robot Hit Streak 8 | 3 8 8 Robot Miss Streak 4 | 1 2 4 Penetration Max . | . . . Secondary Targets 1 | . 1 . Max Gunslinging Chain 1 | . 1 . Shots Hit Robots 50 | 3 17 30 Core Hits 39 | 2 7 30 Critical Kills . | . . . Critical Parts Destroyed . | . . . Critical Strikes 1 | . . 1 Burn 1 | . . 1 Melee Attacks . | . . . Impact . | . . . Slashing . | . . . Piercing . | . . . Sneak Attacks . | . . . Combat Hostiles . | . . . Follow-up Attacks . | . . . Damage Inflicted 1350 | 36 231 1083 Guns 596 | 36 231 329 Cannons . | . . . Explosions 737 | . . 737 Melee . | . . . Ramming 17 | . . 17 Kinetic 125 | . . 125 Thermal 262 | 23 98 141 Explosive 737 | . . 737 Electromagnetic 209 | 13 133 63 Impact . | . . . Slashing . | . . . Piercing . | . . . Highest Corruption 9 | . . 9 Average Corruption 8 | . . 8 Corruption Purged . | . . . Corruption Blocked . | . . . Effects 16 | . . 16 Message Errors 4 | . . 4 Matter Fused 3 | . . 3 Heat Flow Errors 2 | . . 2 Energy Discharges 1 | . . 1 Parts Rejected 1 | . . 1 Parts Fused 1 | . . 1 Data Loss (minor) 2 | . . 2 Data Loss (major) 1 | . . 1 Weapon Failures 1 | . . 1 Overload Shots . | . . . Overflow Damage 31 | . . 31 Projectiles . | . . . Explosions 31 | . . 31 Melee . | . . . Knockbacks . | . . . Impact . | . . . Kinetic . | . . . Secondary . | . . . Self-Inflicted Damage 167 | . . 167 Shots 6 | . . 6 Rammed 1 | . . 1 Targets Rammed 1 | . . 1 Kicked . | . . . Crushed . | . . . Highest Temperature 351 | 42 102 351 Average Temperature 76 | 23 27 95 Received Heat Transfer 282 | 6 96 180 Siege Activations . | . . . Robots Corrupted . | . . . Combat Hostiles . | . . . Parts Fried . | . . . Impact Corruptions . | . . . Robots Melted . | . . . Combat Hostiles . | . . . Parts Melted . | . . . Heat Transferred 682 | 50 236 396 Parts Sabotaged . | . . . Parts Stolen . | . . . Parts Stripped . | . . . Power Chain Reactions . | . . . Alert | -11 -10 -10 ------- Run | Yrd Mat Min Peak Influence 280 | 20 159 280 Initial 61 | . 13 61 Average 86 | 4 89 93 Maximum Alert Level 1 | . . 1 Low Security (%) 95 | 100 100 93 Level 1 4 | . . 6 Level 2 . | . . . Level 3 . | . . . Level 4 . | . . . Level 5 . | . . . High Security . | . . . Max Security . | . . . Squads Dispatched 3 | . 3 . Investigation 1 | . 1 . Extermination . | . . . Reinforcement 2 | . 2 . Assault . | . . . Garrison . | . . . Intercept . | . . . Searches Triggered . | . . . Construction Impeded . | . . . Haulers Reinforced . | . . . Active Scanning Responses . | . . . Cargo Convoy Interrupts . | . . . Stealth | -11 -10 -10 --------- Run | Yrd Mat Min Distress Signals . | . . . Communications Jammed . | . . . Distress Signals . | . . . Times Spotted 23 | 1 6 16 Peak Tracking Total 3 | 1 2 3 Tactical Retreats 1 | . . 1 Traps | -11 -10 -10 ------- Run | Yrd Mat Min Traps Triggered 2 | . 2 . Indirectly . | . . . Trap Hack Attempts . | . . . Triggered . | . . . Disarmed . | . . . Reprogrammed . | . . . Reused . | . . . Traps Extracted . | . . . Installed . | . . . Triggered . | . . . Machines | -11 -10 -10 ---------- Run | Yrd Mat Min Machines Disabled 1 | . 1 . Max in Single Turn 1 | . 1 . Machines Repaired . | . . . Machines Dismantled . | . . . Machines Sabotaged . | . . . Overloaded Fab Kills . | . . . Hacking | -11 -10 -10 --------- Run | Yrd Mat Min Machines Accessed . | . . . Terminals . | . . . Fabricators . | . . . Repair Stations . | . . . Recycling Units . | . . . Scanalyzers . | . . . Garrison Access . | . . . Total Hacks . | . . . Successful . | . . . Failed . | . . . Catastrophic . | . . . Database Lockouts . | . . . Manual . | . . . Terminals . | . . . Fabricators . | . . . Repair Stations . | . . . Recycling Units . | . . . Scanalyzers . | . . . Garrison Access . | . . . Terminal Hacks . | . . . Fabricator Hacks . | . . . Repair Station Hacks . | . . . Recycling Unit Hacks . | . . . Scanalyzer . | . . . Garrison Access Hacks . | . . . Unauthorized Hacks . | . . . Terminals . | . . . Fabricators . | . . . Repair Stations . | . . . Recycling Units . | . . . Scanalyzers . | . . . Garrison Access . | . . . Data Cores Recovered . | . . . Used . | . . . Hacking Detections . | . . . Full Trace Events . | . . . Feedback Events . | . . . Feedback Blocked . | . . . Robot Schematics Acquired . | . . . Robots Built . | . . . Authchips . | . . . Time . | . . . Total Robot Build Rating . | . . . Part Schematics Acquired . | . . . Parts Built . | . . . Authchips . | . . . Time . | . . . Total Part Build Rating . | . . . Parts Repaired . | . . . Time . | . . . Parts Recycled . | . . . Recycled Matter . | . . . Retrieved Matter . | . . . Retrieved Components . | . . . Parts Scanalyzed . | . . . Part Schematics Acquired . | . . . Parts Damaged . | . . . Bothacking | -11 -10 -10 ------------ Run | Yrd Mat Min Used RIF Installer . | . . . Robots Hacked . | . . . Non-combat . | . . . Combat . | . . . Robot Hacks Applied . | . . . Relay Couplers Released . | . . . Fabnet Peak Effective % . | . . . Robots Rewired . | . . . Allies Hacked . | . . . Hacks Repelled . | . . . Allies | -11 -10 -10 -------- Run | Yrd Mat Min Total Allies . | . . . Largest Group . | . . . Highest-Rated Group . | . . . Highest-Rated Ally . | . . . Total Orders . | . . . Ally Attacks . | . . . Total Damage . | . . . Kills . | . . . Allies Corrupted . | . . . Allies Melted . | . . . Intel | -11 -10 -10 ------- Run | Yrd Mat Min Robot Analysis Total . | . . . Derelict Logs Recovered 2 | . . 2 Drone Launches . | . . . Drone Recoveries . | . . . Exploration | -11 -10 -10 ------------- Run | Yrd Mat Min Turns Passed 1184 | 86 151 947 Spaces Moved 970 | 80 118 772 Core 16 | 16 . . Treads . | . . . Legs 253 | . . 253 Wheels 701 | 64 118 519 Hover . | . . . Flight . | . . . Fastest Speed 50 | 50 80 80 Average Speed 90 | 74 80 93 Slowest Speed 120 | 80 80 120 Overloaded Moves . | . . . Propulsion Burnouts . | . . . Robots Hopped . | . . . Cave-ins Triggered . | . . . Exploration Rate (%) 39 | 7 32 78 Regions Visited 2 Branch Regions 1 Pre-discovered Areas . | . . . Known Exits Taken . | . . . Unknown Exits Taken 2 | 1 1 . Scrap Searched 1 | . . 1 Spaces Dug . | . . . Terrain Destroyed 132 | . . 132 Melee . | . . . Projectile . | . . . AOE 132 | . . 132 Terrain Rammed . | . . . Walls Destroyed . | . . . Machines Disabled . | . . . Actions | -11 -10 -10 --------- Run | Yrd Mat Min Total 1192 | 104 146 942 Wait 88 | . . 88 Move 968 | 79 117 772 Hop . | . . . Pick Up 28 | 9 6 13 Fast Attach . | . . . Attach 27 | 10 4 13 Detach 5 | 4 1 . Swap 3 | . 1 2 Drop 15 | . 2 13 Fire 57 | 2 15 40 Melee . | . . . Ram 1 | . . 1 Kick . | . . . Crush . | . . . Escape Stasis . | . . . Rewire . | . . . Trap . | . . . Miscellaneous . | . . . Route ------- -11/Scrapyard -10/Materials -10/Mines History --------- Turn | Location | Event 2 | -11/Scrapyard | Met Revision 17 60 | -11/Scrapyard | Discovered new exit (range 8) 87 | -11/Scrapyard | Entered Materials 214 | -10/Materials | Discovered new exit (range 15) 238 | -10/Materials | Entered Mines 304 | -10/Mines | Build established: Mutant 385 | -10/Mines | Excavation squad dispatched 385 | -10/Mines | A large section of the Mines collapsed 635 | -10/Mines | Excavation squad dispatched 645 | -10/Mines | Learned Materials trap positions 729 | -10/Mines | Received a Rocket Launcher from a helpful Derelict 778 | -10/Mines | Core integrity fell below 50% 817 | -10/Mines | Lost 3 parts (1n2u) 885 | -10/Mines | Excavation squad dispatched 1032 | -10/Mines | Core integrity fell below 20% 1135 | -10/Mines | Excavation squad dispatched 1185 | -10/Mines | Destroyed by G-34 Mercenary with Small Laser Last Messages --------------- Dropped Aluminum Leg. U-05 Engineer lays Concrete. K-01 Serf collects debris. U-05 Engineer builds a Wall. K-01 Serf collects debris. System corrupted: Matter fused (-6). Acquired 37 matter. Acquired Sml. Laser. Dropped Sml. Laser. System corrupted: Substantial component data lost. ALERT: Derelict activity in mines confirmed. Dispatching additional escorted excavation squad. GTMKWZV R<|X